[Event "*** Titled Tuesday 3|2 Blitz"]
[Site "Chess.com"]
[Date "2016.09.06"]
[Round "2"]
[White "psv98"]
[Black "OparinGrigoriy"]
[Result "1-0"]
[WhiteElo "2531"]
[BlackElo "2597"]
[TimeControl "180+2"]
[EndTime "17:21:16 PDT"]
[Termination "psv98 won by resignation"]

1. Nf3 {[%clk 0:03:01.9]} 1... d5 {[%clk 0:02:58.5]} 2. g3 {[%clk 0:03:03.2]}
2... c6 {[%clk 0:02:59.6]} 3. Bg2 {[%clk 0:03:02.7]} 3... Bg4 {[%clk 0:03:01.1]}
4. O-O {[%clk 0:03:04]} 4... Nd7 {[%clk 0:03:02]} 5. d3 {[%clk 0:03:02.5]} 5...
e5 {[%clk 0:03:03.1]} 6. Nbd2 {[%clk 0:02:57.2]} 6... Ngf6 {[%clk 0:03:03.7]} 7.
h3 {[%clk 0:02:56.7]} 7... Bh5 {[%clk 0:03:04.4]} 8. e4 {[%clk 0:02:56.5]} 8...
Be7 {[%clk 0:03:05.9]} 9. Qe1 {[%clk 0:02:49.2]} 9... O-O {[%clk 0:03:06.4]} 10.
Nh4 {[%clk 0:02:48.3]} 10... Re8 {[%clk 0:03:04.6]} 11. b3 {[%clk 0:02:40.9]}
11... a5 {[%clk 0:03:05.2]} 12. a4 {[%clk 0:02:40.9]} 12... Qc7 {[%clk
0:03:03.5]} 13. Bb2 {[%clk 0:02:41.3]} 13... Bb4 {[%clk 0:03:04.6]} 14. g4
{[%clk 0:02:30.8]} 14... Bg6 {[%clk 0:03:05.8]} 15. Qe2 {[%clk 0:02:31.5]} 15...
dxe4 {[%clk 0:03:01.9]} 16. Nxe4 {[%clk 0:02:29.1]} 16... Nxe4 {[%clk 0:03:00]}
17. dxe4 {[%clk 0:02:14.9]} 17... Nf8 {[%clk 0:03:00.9]} 18. Nf5 {[%clk
0:02:09.4]} 18... Ne6 {[%clk 0:03:02]} 19. Rfd1 {[%clk 0:02:08.1]} 19... Rad8
{[%clk 0:03:01.2]} 20. Qf3 {[%clk 0:02:03.5]} 20... f6 {[%clk 0:03:00.2]} 21.
Bf1 {[%clk 0:02:04]} 21... Bf7 {[%clk 0:03:00.6]} 22. h4 {[%clk 0:01:51.3]}
22... Bc5 {[%clk 0:02:56]} 23. Bc4 {[%clk 0:01:46.5]} 23... Nf4 {[%clk
0:02:56.3]} 24. Bxf7+ {[%clk 0:01:43.8]} 24... Qxf7 {[%clk 0:02:56.9]} 25. Rxd8
{[%clk 0:01:43.9]} 25... Rxd8 {[%clk 0:02:57.8]} 26. Rd1 {[%clk 0:01:08.5]}
26... Rd7 {[%clk 0:02:58.4]} 27. Kf1 {[%clk 0:00:49.7]} 27... Qe6 {[%clk
0:02:46.4]} 28. Bc1 {[%clk 0:00:49.5]} 28... g6 {[%clk 0:02:43.9]} 29. Bxf4
{[%clk 0:00:45.9]} 29... exf4 {[%clk 0:02:42.1]} 30. Rxd7 {[%clk 0:00:42.8]}
30... Qxd7 {[%clk 0:02:42.9]} 31. Nh6+ {[%clk 0:00:44.1]} 31... Kg7 {[%clk
0:02:44.3]} 32. g5 {[%clk 0:00:38.3]} 32... Bd6 {[%clk 0:02:32.2]} 33. Ng4
{[%clk 0:00:32.9]} 33... Be5 {[%clk 0:02:05.1]} 34. gxf6+ {[%clk 0:00:33.3]}
34... Bxf6 {[%clk 0:02:06.4]} 35. Qxf4 {[%clk 0:00:34.4]} 35... Bc3 {[%clk
0:01:57.5]} 36. e5 {[%clk 0:00:35.4]} 36... Qd1+ {[%clk 0:01:29.6]} 37. Kg2
{[%clk 0:00:36.4]} 37... Qd5+ {[%clk 0:01:31.2]} 38. Kg1 {[%clk 0:00:35.5]}
38... Bd2 {[%clk 0:01:00.5]} 39. Qf6+ {[%clk 0:00:31.4]} 39... Kg8 {[%clk
0:01:01.8]} 40. e6 {[%clk 0:00:11.3]} 40... Qf5 {[%clk 0:01:00.2]} 41. Qd8+
{[%clk 0:00:08.6]} 41... Kg7 {[%clk 0:01:01.3]} 42. Qe7+ {[%clk 0:00:09.6]}
42... Kg8 {[%clk 0:01:01.5]} 43. Qd8+ {[%clk 0:00:09.8]} 43... Kg7 {[%clk
0:01:02.6]} 44. Qe7+ {[%clk 0:00:10.9]} 44... Kg8 {[%clk 0:01:03.4]} 45. Nf6+
{[%clk 0:00:12.2]} 1-0

[Event "*** Titled Tuesday 3|2 Blitz"]
[Site "Chess.com"]
[Date "2016.09.06"]
[Round "2"]
[White "spirals5"]
[Black "goingin33"]
[Result "0-1"]
[WhiteElo "2253"]
[BlackElo "2178"]
[TimeControl "180+2"]
[EndTime "17:21:21 PDT"]
[Termination "goingin33 won by resignation"]

1. e4 {[%clk 0:03:01.9]} 1... e6 {[%clk 0:03:00.8]} 2. Nc3 {[%clk 0:03:02.2]}
2... d5 {[%clk 0:03:01.7]} 3. Nf3 {[%clk 0:03:02.9]} 3... Nf6 {[%clk 0:03:03.3]}
4. e5 {[%clk 0:03:03]} 4... Nfd7 {[%clk 0:03:04.9]} 5. a3 {[%clk 0:03:01.6]}
5... c5 {[%clk 0:03:04.6]} 6. Bb5 {[%clk 0:03:01.6]} 6... a6 {[%clk 0:03:00.9]}
7. Bxd7+ {[%clk 0:03:02.1]} 7... Bxd7 {[%clk 0:03:00]} 8. O-O {[%clk 0:03:03.1]}
8... Bc6 {[%clk 0:02:58.1]} 9. Re1 {[%clk 0:03:01.9]} 9... Be7 {[%clk
0:02:56.8]} 10. d3 {[%clk 0:03:02.5]} 10... Nd7 {[%clk 0:02:53.6]} 11. Bf4
{[%clk 0:03:02.9]} 11... g5 {[%clk 0:02:51.8]} 12. Bg3 {[%clk 0:03:03]} 12... h5
{[%clk 0:02:51.2]} 13. h3 {[%clk 0:03:04.1]} 13... Qc7 {[%clk 0:02:13.9]} 14. h4
{[%clk 0:02:52.4]} 14... gxh4 {[%clk 0:02:09.7]} 15. Nxh4 {[%clk 0:02:52.9]}
15... O-O-O {[%clk 0:02:09.7]} 16. Qd2 {[%clk 0:02:40]} 16... Rdg8 {[%clk
0:02:07.4]} 17. d4 {[%clk 0:02:13.9]} 17... Qd8 {[%clk 0:02:05.9]} 18. Nf3
{[%clk 0:02:11.1]} 18... h4 {[%clk 0:02:07.2]} 19. Bh2 {[%clk 0:02:03.2]} 19...
Rg4 {[%clk 0:01:48.8]} 20. Kh1 {[%clk 0:02:01.4]} 20... Rhg8 {[%clk 0:01:48.4]}
21. Rg1 {[%clk 0:02:01.7]} 21... Qf8 {[%clk 0:01:45.4]} 22. Ne2 {[%clk
0:01:53.4]} 22... Bb5 {[%clk 0:01:33.2]} 23. Nf4 {[%clk 0:01:52.9]} 23... Qh6
{[%clk 0:01:15.2]} 24. Qe3 {[%clk 0:01:49.1]} 24... Qh7 {[%clk 0:01:13]} 25. c3
{[%clk 0:01:47.7]} 25... Nb6 {[%clk 0:01:02.7]} 26. b3 {[%clk 0:01:44.3]} 26...
Bc6 {[%clk 0:00:48]} 27. a4 {[%clk 0:01:42.2]} 27... Nd7 {[%clk 0:00:48.1]} 28.
a5 {[%clk 0:01:38.4]} 28... Nf8 {[%clk 0:00:48.7]} 29. b4 {[%clk 0:01:31.6]}
29... c4 {[%clk 0:00:47.8]} 30. Nh3 {[%clk 0:00:53.6]} 30... Qe4 {[%clk
0:00:35.2]} 31. Rae1 {[%clk 0:00:42.8]} 31... Qh7 {[%clk 0:00:34.8]} 32. Qe2
{[%clk 0:00:35.5]} 32... Ba4 {[%clk 0:00:35.1]} 33. Nd2 {[%clk 0:00:31.1]} 33...
Bc2 {[%clk 0:00:35.5]} 34. f3 {[%clk 0:00:30.9]} 34... R4g7 {[%clk 0:00:32.8]}
35. Qe3 {[%clk 0:00:29.2]} 35... Bf5 {[%clk 0:00:31.9]} 36. Qf2 {[%clk
0:00:27.3]} 36... Bxh3 {[%clk 0:00:32.1]} 37. gxh3 {[%clk 0:00:27.8]} 37... Qf5
{[%clk 0:00:31.9]} 38. Rxg7 {[%clk 0:00:28.1]} 38... Rxg7 {[%clk 0:00:33.8]} 39.
Rg1 {[%clk 0:00:28.6]} 39... Rg6 {[%clk 0:00:34.7]} 40. Rxg6 {[%clk 0:00:29]}
40... Nxg6 {[%clk 0:00:36.6]} 41. Kg2 {[%clk 0:00:24]} 41... Qc2 {[%clk
0:00:36.3]} 42. Qe3 {[%clk 0:00:19.1]} 42... Bxb4 {[%clk 0:00:36.9]} 43. cxb4
{[%clk 0:00:19.7]} 43... c3 {[%clk 0:00:38.3]} 44. Qf2 {[%clk 0:00:10.4]} 44...
cxd2 {[%clk 0:00:36.2]} 0-1

[Event "*** Titled Tuesday 3|2 Blitz"]
[Site "Chess.com"]
[Date "2016.09.06"]
[Round "2"]
[White "papapizza_old"]
[Black "pedromartinez91"]
[Result "1/2-1/2"]
[WhiteElo "2262"]
[BlackElo "2374"]
[TimeControl "180+2"]
[EndTime "17:21:27 PDT"]
[Termination "Game drawn by agreement"]

1. d4 {[%clk 0:03:01.9]} 1... d5 {[%clk 0:02:55.2]} 2. Nf3 {[%clk 0:03:01.6]}
2... e6 {[%clk 0:02:52.5]} 3. c4 {[%clk 0:03:02.1]} 3... Nf6 {[%clk 0:02:52.8]}
4. Nc3 {[%clk 0:03:02.3]} 4... Be7 {[%clk 0:02:53.6]} 5. Bf4 {[%clk 0:03:02.4]}
5... O-O {[%clk 0:02:53.7]} 6. a3 {[%clk 0:03:02.5]} 6... Ne4 {[%clk 0:02:52.4]}
7. e3 {[%clk 0:02:40.4]} 7... f5 {[%clk 0:02:48.6]} 8. h3 {[%clk 0:02:33.3]}
8... c6 {[%clk 0:02:48.7]} 9. Qc2 {[%clk 0:02:28.7]} 9... Nd7 {[%clk 0:02:36.8]}
10. Bd3 {[%clk 0:02:23.5]} 10... Ndf6 {[%clk 0:02:36.6]} 11. O-O {[%clk
0:02:15.2]} 11... Bd7 {[%clk 0:02:32]} 12. Ne2 {[%clk 0:02:10.1]} 12... Be8
{[%clk 0:02:30.9]} 13. Ne5 {[%clk 0:01:50.3]} 13... g5 {[%clk 0:02:27.4]} 14.
Bh2 {[%clk 0:01:50]} 14... Bh5 {[%clk 0:02:25.2]} 15. f3 {[%clk 0:01:47.7]}
15... Nd6 {[%clk 0:02:24.9]} 16. b4 {[%clk 0:01:36.3]} 16... Nd7 {[%clk
0:02:17.9]} 17. Rab1 {[%clk 0:01:31.2]} 17... Nxe5 {[%clk 0:02:07.8]} 18. Bxe5
{[%clk 0:01:30.6]} 18... Rc8 {[%clk 0:01:58.6]} 19. Rfc1 {[%clk 0:01:19]} 19...
Nf7 {[%clk 0:01:42.5]} 20. Bh2 {[%clk 0:01:18.5]} 20... Bd6 {[%clk 0:01:40.7]}
21. Bxd6 {[%clk 0:01:15.6]} 21... Qxd6 {[%clk 0:01:41.2]} 22. cxd5 {[%clk
0:01:13.3]} 22... exd5 {[%clk 0:01:34.7]} 23. Bxf5 {[%clk 0:01:12.5]} 23... Rce8
{[%clk 0:01:36.2]} 24. Bxh7+ {[%clk 0:01:12.7]} 24... Kh8 {[%clk 0:01:35.5]} 25.
Rb3 {[%clk 0:01:08.5]} 25... Nh6 {[%clk 0:01:31.2]} 26. Bd3 {[%clk 0:00:44.9]}
26... Rxe3 {[%clk 0:01:31.5]} 27. Qd2 {[%clk 0:00:42.1]} 27... Rfe8 {[%clk
0:01:27]} 28. Bc4 {[%clk 0:00:35.6]} 28... R3e7 {[%clk 0:01:16.6]} 29. Bd3
{[%clk 0:00:27.3]} 29... Qf6 {[%clk 0:01:17.2]} 30. Rf1 {[%clk 0:00:20.7]} 30...
Nf5 {[%clk 0:01:16.8]} 31. Bxf5 {[%clk 0:00:20.4]} 31... Rxe2 {[%clk 0:01:16.5]}
32. Qd3 {[%clk 0:00:20.8]} 32... R8e3 {[%clk 0:01:10.9]} 33. Qxe3 {[%clk
0:00:18]} 33... Rxe3 {[%clk 0:01:11.9]} 34. Rxe3 {[%clk 0:00:19.3]} 34... Qxf5
{[%clk 0:01:13.5]} 35. Re7 {[%clk 0:00:20.5]} 35... Qf6 {[%clk 0:01:14]} 36.
Rfe1 {[%clk 0:00:17.8]} 36... Qxd4+ {[%clk 0:01:14.4]} 37. Kh1 {[%clk
0:00:17.7]} 37... Qc3 {[%clk 0:01:15.2]} 38. R1e6 {[%clk 0:00:17.7]} 38... d4
{[%clk 0:01:05.7]} 39. Rh6+ {[%clk 0:00:14.7]} 39... Kg8 {[%clk 0:01:06.6]} 40.
Rxh5 {[%clk 0:00:16.1]} 40... d3 {[%clk 0:01:07.9]} 41. Rxg5+ {[%clk 0:00:16.7]}
41... Kf8 {[%clk 0:01:08.9]} 42. Ree5 {[%clk 0:00:13.7]} 42... d2 {[%clk
0:01:09.1]} 43. Rgf5+ {[%clk 0:00:14.4]} 43... Kg7 {[%clk 0:01:10.2]} 44. Rg5+
{[%clk 0:00:15.6]} 44... Kh6 {[%clk 0:01:09]} 45. Rh5+ {[%clk 0:00:16.6]} 45...
Kg6 {[%clk 0:01:10.2]} 46. Rhg5+ {[%clk 0:00:17.8]} 46... Kf7 {[%clk 0:01:11.3]}
47. Rgf5+ {[%clk 0:00:19.1]} 47... Kg8 {[%clk 0:01:11.1]} 48. Rg5+ {[%clk
0:00:20.4]} 48... Kh8 {[%clk 0:01:12.3]} 49. Rh5+ {[%clk 0:00:21.4]} 49... Kg7
{[%clk 0:01:13.4]} 50. Rhg5+ {[%clk 0:00:22.2]} 50... Kf6 {[%clk 0:01:14.3]} 51.
Rgf5+ {[%clk 0:00:23.2]} 51... Kg6 {[%clk 0:01:15.1]} 52. Rg5+ {[%clk
0:00:23.8]} 1/2-1/2

[Event "*** Titled Tuesday 3|2 Blitz"]
[Site "Chess.com"]
[Date "2016.09.06"]
[Round "2"]
[White "Chakraborty-ARZ"]
[Black "Goala"]
[Result "1-0"]
[WhiteElo "2323"]
[BlackElo "2175"]
[TimeControl "180+2"]
[EndTime "17:21:31 PDT"]
[Termination "Chakraborty-ARZ won by resignation"]

1. d4 {[%clk 0:03:01.9]} 1... e6 {[%clk 0:03:01.3]} 2. e4 {[%clk 0:03:02.5]}
2... d5 {[%clk 0:03:02.1]} 3. Nc3 {[%clk 0:03:03.9]} 3... Nf6 {[%clk 0:03:02.8]}
4. e5 {[%clk 0:03:04.8]} 4... Nfd7 {[%clk 0:03:03.8]} 5. f4 {[%clk 0:03:06.7]}
5... c5 {[%clk 0:03:05.2]} 6. Nf3 {[%clk 0:03:08.4]} 6... Nc6 {[%clk 0:03:06.5]}
7. Be3 {[%clk 0:03:10.1]} 7... cxd4 {[%clk 0:03:07.5]} 8. Nxd4 {[%clk
0:03:10.4]} 8... Bc5 {[%clk 0:03:09.1]} 9. Qd2 {[%clk 0:03:09.8]} 9... a6 {[%clk
0:03:10]} 10. Be2 {[%clk 0:03:08.8]} 10... O-O {[%clk 0:03:07.9]} 11. O-O-O
{[%clk 0:03:03.9]} 11... Bxd4 {[%clk 0:03:08.2]} 12. Bxd4 {[%clk 0:03:04.3]}
12... b5 {[%clk 0:03:09.8]} 13. Bf3 {[%clk 0:02:51.6]} 13... b4 {[%clk
0:03:09.7]} 14. Ne2 {[%clk 0:02:52.4]} 14... a5 {[%clk 0:03:09.1]} 15. h4 {[%clk
0:02:52.5]} 15... Qc7 {[%clk 0:03:08.8]} 16. h5 {[%clk 0:02:51.1]} 16... Ba6
{[%clk 0:03:09.6]} 17. Kb1 {[%clk 0:02:38.5]} 17... Rfc8 {[%clk 0:03:10.4]} 18.
h6 {[%clk 0:02:30.7]} 18... g6 {[%clk 0:03:10.9]} 19. g4 {[%clk 0:02:23]} 19...
a4 {[%clk 0:03:10.3]} 20. Rh2 {[%clk 0:02:17.8]} 20... Nxd4 {[%clk 0:02:49.7]}
21. Nxd4 {[%clk 0:02:16.8]} 21... Nb6 {[%clk 0:02:51.3]} 22. Qe1 {[%clk
0:02:06.8]} 22... Nc4 {[%clk 0:02:47]} 23. Qh4 {[%clk 0:01:48]} 23... Qd8 {[%clk
0:01:57.3]} 24. Qxd8+ {[%clk 0:01:47.5]} 24... Rxd8 {[%clk 0:01:59.2]} 25. Nc6
{[%clk 0:01:49.2]} 25... Rd7 {[%clk 0:01:48.3]} 26. Nxb4 {[%clk 0:01:49.5]}
26... Bb5 {[%clk 0:01:45.2]} 27. Re2 {[%clk 0:01:31.1]} 27... Rb8 {[%clk
0:01:39.2]} 28. a3 {[%clk 0:01:21.6]} 28... Rc7 {[%clk 0:01:14.2]} 29. Ree1
{[%clk 0:01:17.4]} 29... Na5 {[%clk 0:01:12.3]} 30. c3 {[%clk 0:01:09.5]} 30...
Nb3 {[%clk 0:01:08]} 31. f5 {[%clk 0:00:42]} 31... Rc4 {[%clk 0:00:52.6]} 32.
fxe6 {[%clk 0:00:40.7]} 32... fxe6 {[%clk 0:00:54.5]} 33. Nxd5 {[%clk
0:00:40.2]} 33... exd5 {[%clk 0:00:56.4]} 34. Bxd5+ {[%clk 0:00:41.8]} 34... Kf8
{[%clk 0:00:48.6]} 35. Bxc4 {[%clk 0:00:41.7]} 35... Bxc4 {[%clk 0:00:50.5]} 36.
Rd7 {[%clk 0:00:39.8]} 36... Ke8 {[%clk 0:00:46.2]} 37. Rxh7 {[%clk 0:00:38.9]}
37... Rb6 {[%clk 0:00:28.3]} 38. Rc7 {[%clk 0:00:35.1]} 38... Bd3+ {[%clk
0:00:28.3]} 39. Ka2 {[%clk 0:00:36.7]} 39... g5 {[%clk 0:00:13]} 40. h7 {[%clk
0:00:35.6]} 40... Bxh7 {[%clk 0:00:10.9]} 41. Rxh7 {[%clk 0:00:37.5]} 41... Nd2
{[%clk 0:00:11.3]} 42. Re2 {[%clk 0:00:35.5]} 42... Nc4 {[%clk 0:00:11.5]} 43.
e6 {[%clk 0:00:36.1]} 43... Nd6 {[%clk 0:00:09.8]} 44. e7 {[%clk 0:00:36.2]}
44... Nf7 {[%clk 0:00:10.2]} 45. Rxf7 {[%clk 0:00:35.7]} 45... Kxf7 {[%clk
0:00:11.1]} 46. e8=Q+ {[%clk 0:00:36.9]} 1-0

[Event "*** Titled Tuesday 3|2 Blitz"]
[Site "Chess.com"]
[Date "2016.09.06"]
[Round "2"]
[White "rithwik2002"]
[Black "tabarex"]
[Result "1-0"]
[WhiteElo "1909"]
[BlackElo "1866"]
[TimeControl "180+2"]
[EndTime "17:21:31 PDT"]
[Termination "rithwik2002 won by checkmate"]

1. e4 {[%clk 0:03:02]} 1... Nc6 {[%clk 0:03:00.5]} 2. d4 {[%clk 0:02:56.1]} 2...
e5 {[%clk 0:03:01.1]} 3. Nf3 {[%clk 0:02:52.5]} 3... exd4 {[%clk 0:03:01]} 4.
Nxd4 {[%clk 0:02:54.4]} 4... Bc5 {[%clk 0:03:02.3]} 5. Be3 {[%clk 0:02:49.4]}
5... Qf6 {[%clk 0:03:01.8]} 6. c3 {[%clk 0:02:46.2]} 6... Nge7 {[%clk
0:02:51.1]} 7. Bc4 {[%clk 0:02:41.2]} 7... O-O {[%clk 0:02:49.5]} 8. O-O {[%clk
0:02:38.7]} 8... d6 {[%clk 0:02:45.6]} 9. f4 {[%clk 0:02:35]} 9... Be6 {[%clk
0:02:17.7]} 10. Be2 {[%clk 0:02:31.6]} 10... Bd7 {[%clk 0:01:54]} 11. Nc2 {[%clk
0:02:28.8]} 11... Bxe3+ {[%clk 0:01:43.6]} 12. Nxe3 {[%clk 0:02:30.7]} 12... Ng6
{[%clk 0:01:44.6]} 13. Bg4 {[%clk 0:02:25.5]} 13... Bxg4 {[%clk 0:01:42.7]} 14.
Qxg4 {[%clk 0:02:27.4]} 14... Rae8 {[%clk 0:01:38.9]} 15. Nd5 {[%clk 0:02:22.4]}
15... Qd8 {[%clk 0:01:38.8]} 16. Nd2 {[%clk 0:02:15.8]} 16... Nce7 {[%clk
0:01:36]} 17. Ne3 {[%clk 0:02:04.5]} 17... Nc6 {[%clk 0:01:36.4]} 18. Rae1
{[%clk 0:01:58.5]} 18... Qh4 {[%clk 0:01:36.7]} 19. Qxh4 {[%clk 0:01:52]} 19...
Nxh4 {[%clk 0:01:37.5]} 20. f5 {[%clk 0:01:53.9]} 20... g6 {[%clk 0:01:30.9]}
21. g3 {[%clk 0:01:52.3]} 21... gxf5 {[%clk 0:01:31.1]} 22. exf5 {[%clk
0:01:43.6]} 22... Ne5 {[%clk 0:01:13.7]} 23. g4 {[%clk 0:01:44]} 23... f6 {[%clk
0:01:05.9]} 24. Kf2 {[%clk 0:01:40.2]} 24... Kh8 {[%clk 0:01:02.8]} 25. Kg3
{[%clk 0:01:37.8]} 25... Nhg6 {[%clk 0:00:59.3]} 26. fxg6 {[%clk 0:01:33.2]}
26... hxg6 {[%clk 0:01:00.8]} 27. Nd5 {[%clk 0:01:28.6]} 27... Kg7 {[%clk
0:00:55.7]} 28. Nxc7 {[%clk 0:01:26.3]} 28... Rc8 {[%clk 0:00:56.4]} 29. Ne6+
{[%clk 0:01:27.2]} 29... Kf7 {[%clk 0:00:55.4]} 30. Nxf8 {[%clk 0:01:29.1]}
30... Rxf8 {[%clk 0:00:56.5]} 31. g5 {[%clk 0:01:26.8]} 31... f5 {[%clk
0:00:56.3]} 32. Ne4 {[%clk 0:01:27.9]} 32... Ke6 {[%clk 0:00:56.7]} 33. Nf6
{[%clk 0:01:21]} 33... Rc8 {[%clk 0:00:53.2]} 34. h4 {[%clk 0:01:16.4]} 34... b5
{[%clk 0:00:52.5]} 35. h5 {[%clk 0:01:17.4]} 35... b4 {[%clk 0:00:22]} 36. h6
{[%clk 0:01:16.2]} 36... bxc3 {[%clk 0:00:22.5]} 37. h7 {[%clk 0:01:15.7]} 37...
cxb2 {[%clk 0:00:21.1]} 38. Ng8 {[%clk 0:01:12.9]} 38... Rc3+ {[%clk 0:00:21]}
39. Kg2 {[%clk 0:01:10.9]} 39... Rc2+ {[%clk 0:00:21.6]} 40. Kg1 {[%clk
0:01:10.8]} 40... f4 {[%clk 0:00:15.6]} 41. h8=Q {[%clk 0:01:08.6]} 41... f3
{[%clk 0:00:16.7]} 42. Qf6+ {[%clk 0:00:59.3]} 42... Kd5 {[%clk 0:00:16.5]} 43.
Rxe5+ {[%clk 0:00:59.3]} 43... dxe5 {[%clk 0:00:15.3]} 44. Ne7+ {[%clk
0:01:01.2]} 44... Kc5 {[%clk 0:00:16]} 45. Qc6+ {[%clk 0:00:59.5]} 45... Kd4
{[%clk 0:00:16]} 46. Rd1+ {[%clk 0:00:56.3]} 46... Ke3 {[%clk 0:00:16.1]} 47.
Nd5+ {[%clk 0:00:53.2]} 47... Ke4 {[%clk 0:00:13]} 48. Qxc2# {[%clk 0:00:52.5]}
1-0

[Event "*** Titled Tuesday 3|2 Blitz"]
[Site "Chess.com"]
[Date "2016.09.06"]
[Round "2"]
[White "Elshan1985"]
[Black "gmjoey1"]
[Result "1-0"]
[WhiteElo "2585"]
[BlackElo "2508"]
[TimeControl "180+2"]
[EndTime "17:21:56 PDT"]
[Termination "Elshan1985 won by resignation"]

1. d4 {[%clk 0:03:01.9]} 1... Nf6 {[%clk 0:02:56.1]} 2. Nf3 {[%clk 0:02:59.8]}
2... e6 {[%clk 0:02:54.5]} 3. c4 {[%clk 0:02:59.7]} 3... c5 {[%clk 0:02:55.2]}
4. e3 {[%clk 0:02:56.2]} 4... cxd4 {[%clk 0:02:55.1]} 5. exd4 {[%clk 0:02:55.7]}
5... d5 {[%clk 0:02:56.7]} 6. Nc3 {[%clk 0:02:56.2]} 6... Bb4 {[%clk 0:02:56.9]}
7. cxd5 {[%clk 0:02:53.8]} 7... exd5 {[%clk 0:02:58.8]} 8. Bb5+ {[%clk
0:02:53.4]} 8... Bd7 {[%clk 0:02:58.6]} 9. Qe2+ {[%clk 0:02:50]} 9... Ne4 {[%clk
0:02:56.9]} 10. O-O {[%clk 0:02:46.6]} 10... Bxc3 {[%clk 0:02:57.3]} 11. bxc3
{[%clk 0:02:47.1]} 11... O-O {[%clk 0:02:58.8]} 12. Bxd7 {[%clk 0:02:37.5]}
12... Nxd7 {[%clk 0:03:00.7]} 13. c4 {[%clk 0:02:37.8]} 13... Re8 {[%clk
0:03:00.4]} 14. Qd3 {[%clk 0:02:35.1]} 14... dxc4 {[%clk 0:03:00.5]} 15. Qxc4
{[%clk 0:02:36.3]} 15... Nb6 {[%clk 0:03:01.5]} 16. Qb3 {[%clk 0:02:34.9]} 16...
Qd5 {[%clk 0:03:01.7]} 17. Be3 {[%clk 0:02:31.3]} 17... Qxb3 {[%clk 0:02:55.8]}
18. axb3 {[%clk 0:02:32.4]} 18... Nd5 {[%clk 0:02:56.8]} 19. Ra5 {[%clk
0:02:30]} 19... Red8 {[%clk 0:02:56.5]} 20. Re1 {[%clk 0:02:16.9]} 20... b6
{[%clk 0:02:49.3]} 21. Raa1 {[%clk 0:02:11.8]} 21... f6 {[%clk 0:02:45]} 22. h3
{[%clk 0:02:01]} 22... a5 {[%clk 0:02:42.6]} 23. Nh4 {[%clk 0:01:47.6]} 23... g6
{[%clk 0:02:35.7]} 24. Bh6 {[%clk 0:01:47.3]} 24... Re8 {[%clk 0:02:31.7]} 25.
Nf3 {[%clk 0:01:47.5]} 25... g5 {[%clk 0:02:18.6]} 26. h4 {[%clk 0:01:47.7]}
26... g4 {[%clk 0:02:19.2]} 27. Ne5 {[%clk 0:01:39.7]} 27... Nxf2 {[%clk
0:01:56.6]} 28. Kxf2 {[%clk 0:01:40.4]} 28... fxe5 {[%clk 0:01:57]} 29. Rxe5
{[%clk 0:01:39.9]} 29... Rxe5 {[%clk 0:01:56.8]} 30. dxe5 {[%clk 0:01:41.8]}
30... Re8 {[%clk 0:01:57.2]} 31. Re1 {[%clk 0:01:41.8]} 31... Kf7 {[%clk
0:01:57.3]} 32. Kg3 {[%clk 0:01:42.5]} 32... Kg6 {[%clk 0:01:58.4]} 33. Bd2
{[%clk 0:01:42.2]} 33... h5 {[%clk 0:01:56.2]} 34. Bc1 {[%clk 0:01:15.8]} 34...
Nb4 {[%clk 0:01:55.6]} 35. Re3 {[%clk 0:01:07.9]} 35... Kf5 {[%clk 0:01:50.7]}
36. Bb2 {[%clk 0:01:09.2]} 36... Nc6 {[%clk 0:01:50.8]} 37. Re1 {[%clk
0:01:06.3]} 37... Re6 {[%clk 0:01:46.2]} 38. Rf1+ {[%clk 0:01:07.1]} 38... Ke4
{[%clk 0:01:46.2]} 39. Rf6 {[%clk 0:01:06.9]} 39... Rxf6 {[%clk 0:01:39.2]} 40.
exf6 {[%clk 0:01:07.8]} 40... Nd8 {[%clk 0:01:40.9]} 41. Ba3 {[%clk 0:01:09.3]}
41... b5 {[%clk 0:01:37.9]} 42. Bc5 {[%clk 0:01:07.3]} 42... Nf7 {[%clk
0:01:38.7]} 43. Bb6 {[%clk 0:01:08.2]} 43... a4 {[%clk 0:01:39.1]} 44. bxa4
{[%clk 0:01:09.8]} 44... bxa4 {[%clk 0:01:40.3]} 45. Bc5 {[%clk 0:01:11.5]}
45... Ke5 {[%clk 0:01:41.2]} 46. Be7 {[%clk 0:01:12.3]} 46... Ke4 {[%clk
0:01:41.2]} 47. Bf8 {[%clk 0:01:13]} 47... Kf5 {[%clk 0:01:41.9]} 48. Be7 {[%clk
0:01:14]} 48... Ke5 {[%clk 0:01:43.2]} 49. Kf2 {[%clk 0:01:15.2]} 49... Kf4
{[%clk 0:01:43.4]} 50. Bf8 {[%clk 0:01:12.4]} 50... g3+ {[%clk 0:01:40.3]} 51.
Ke2 {[%clk 0:01:13.3]} 51... Kg4 {[%clk 0:01:41.6]} 52. Ke3 {[%clk 0:01:14.6]}
52... Kxh4 {[%clk 0:01:42.1]} 53. Kf4 {[%clk 0:01:15.9]} 53... Ng5 {[%clk
0:01:33.3]} 54. Be7 {[%clk 0:01:15.7]} 54... Nf7 {[%clk 0:01:30.9]} 55. Kf5
{[%clk 0:01:16.8]} 55... a3 {[%clk 0:01:20.4]} 56. Bxa3 {[%clk 0:01:16.4]} 56...
Nd6+ {[%clk 0:01:22]} 57. Kg6 {[%clk 0:01:13.3]} 57... Nc4 {[%clk 0:01:18]} 58.
Bb2 {[%clk 0:01:07.7]} 58... Nd6 {[%clk 0:01:10.8]} 59. Be5 {[%clk 0:01:07.2]}
59... Nc4 {[%clk 0:01:11.7]} 60. Bc7 {[%clk 0:01:05.2]} 60... Ne3 {[%clk
0:00:57.1]} 61. f7 {[%clk 0:01:04.9]} 61... Nf5 {[%clk 0:00:45.3]} 62. f8=Q
{[%clk 0:00:56]} 1-0